Cogmind - Beta 16.1 @@@ ROGUE MODE // 2026.04.11 @ 17:57:24 Player: M4-TR4 Result: Destroyed by TI-WC1(R) with Subdweller Beam Cannon Performance ------------- Evolutions (0) 0 Regions Visited (3) 600 Robots Destroyed (40) 200 Value Destroyed (953) 953 Prototype IDs (2) 40 Alien Tech Used (0) 0 Bonus (0) 0 TOTAL SCORE: 1793 Bonus ------- None Cogmind --------- Core Integrity 0/250 Matter 195/300 Energy 100/100 System Corruption 0% Temperature Cool (9) Movement Core (200) Ox3 Location -10/Subcaves Parts ------- > --- POWER (1) -------- (None) > --- PROPULSION (2) --- (None) > --- UTILITY (2) ------ Bomb Drone Bay (16/16) > --- WEAPON (2) ------- Subdweller Machine Gun > --- INVENTORY (5) ---- High-capacity Storage Unit Improved Terrain Scanner Makeshift Light Armor Plating Scrap Shield Fragment (49) Peak State ------------ > --- POWER ------------ Subdweller Power Source > --- PROPULSION ------- Improved Treads Improved Treads > --- UTILITY ---------- Bomb Drone Bay > --- WEAPON ----------- Subdweller Machine Gun Subdweller Machine Gun > --- INVENTORY -------- High-capacity Storage Unit Improved Terrain Scanner Makeshift Light Armor Plating Scrap Shield Fragment [Rating: 25] Favorites ----------- Power Ion Engine Engine Ion Engine Propulsion Improved Treads Treads Improved Treads Utility Seismic Detector Device Seismic Detector Storage Large Storage Unit Protection Scrap Shield Weapon Improved Assault Rifle Energy Gun Beam Rifle Ballistic Gun Improved Assault Rifle Launcher Grenade Launcher Build | -11 -10 -10 -10 ------- Run | Yrd Mat Min Sub Slots Evolved . | . . . . Power . | . . . . Propulsion . | . . . . Utility . | . . . . Weapon . | . . . . Parts Attached 31 | 8 13 . 10 Power 6 | 1 2 . 3 Engine 6 | 1 2 . 3 Core . | . . . . Reactor . | . . . . Propulsion 6 | 2 2 . 2 Treads 6 | 2 2 . 2 Leg . | . . . . Wheel . | . . . . Hover . | . . . . Flight . | . . . . Utility 8 | 3 3 . 2 Device 3 | 2 . . 1 Storage 4 | 1 3 . . Processor . | . . . . Hackware . | . . . . Protection 1 | . . . 1 Artifact . | . . . . Weapon 11 | 2 6 . 3 Energy Gun 4 | 1 3 . . Energy Cannon . | . . . . Ballistic Gun 6 | 1 2 . 3 Ballistic Cannon . | . . . . Launcher 1 | . 1 . . Special Weapon . | . . . . Impact Weapon . | . . . . Slashing Weapon . | . . . . Piercing Weapon . | . . . . Special Melee Weapon . | . . . . Unidentified Prototypes 2 | . 1 . 1 Parts Lost 7 | . 1 . 6 Power 1 | . . . 1 Propulsion 2 | . . . 2 Utility 1 | . . . 1 Weapon 3 | . 1 . 2 Highest Loss Streak 4 | . 1 . 4 To Critical Strikes . | . . . . Average Backups 8 | 2 8 12 6 Power 1 | . . 2 . Propulsion 1 | 1 1 2 . Utility 4 | . 3 6 4 Weapon 1 | . 2 2 . Tool/Special . | . . . . Unused Backups 13 | . 7 . 6 Power 1 | . . . 1 Propulsion 2 | . 2 . . Utility 8 | . 3 . 5 Weapon 2 | . 2 . . Tool/Special . | . . . . Average Slot Usage (%) 96 | . 99 100 88 Engine 14 | . 14 14 14 Treads 27 | . 28 28 27 Device 11 | . 14 14 6 Storage 11 | . 14 14 4 Protection 2 | . . . 7 Energy Gun 3 | . 7 . . Ballistic Gun 23 | . 19 28 23 Launcher 1 | . . . 3 Peak Build Rating 25 | 9 15 16 25 Average Rating 13 | 5 10 15 16 On Entrance 9 | . 7 15 16 Avg Prop Armor Cover (%) . | . . . . Naked Turns . | . . . . Heaviest Build 52 | 13 52 32 32 Greatest Support 46 | 40 46 46 46 Greatest Overweight (x) 1 | . 1 . . Average Overweight (x) . | . . . . Largest Inventory Capacity 20 | 8 20 15 15 Average Capacity 11 | 7 11 15 7 Most Carried 15 | 4 12 14 15 Average Carried 9 | 2 8 12 7 Final Capacity 15 | 8 15 15 5 Final Carried 14 | 4 12 14 4 Class Distribution -------------------- 83% | Mutant 16% | Subdweller-Mutant Dominant Class ---------------- Mutant | -10/Materials Mutant | -10/Mines Subdweller-Mutant | -10/Subcaves Resources | -11 -10 -10 -10 ----------- Run | Yrd Mat Min Sub Matter Collected 897 | 72 599 48 178 Remotely . | . . . . Salvage Created 1104 | 72 713 . 319 Parts 90 | 12 55 . 23 Haulers Intercepted 2 | . 2 . . Recyclers Shooed . | . . . . Parts Field Recycled . | . . . . Retrieved Matter . | . . . . Parts Self-Destructed . | . . . . Prevented . | . . . . Parts Restored . | . . . . Kills | -11 -10 -10 -10 ------- Run | Yrd Mat Min Sub Combat Hostiles Destroyed 27 | . 18 . 9 Guns 20 | . 14 . 6 AOE 7 | . 4 . 3 Classes Destroyed 9 | 1 7 . 1 Worker 1 | . 1 . . Builder 3 | . 3 . . Tunneler 3 | 3 . . . Hauler 2 | . 2 . . Operator 1 | . 1 . . Watcher 2 | . 2 . . Swarmer 6 | . 6 . . Grunt 13 | . 12 . 1 Subdweller 9 | . . . 9 Best Kill Streak 6 | 3 6 . 2 Combat Bots Only 5 | . 5 . 2 Max Kills in Single Turn 4 | 1 4 . 2 Gunslinging . | . . . . Exploded 2 | . 2 . 1 Melee . | . . . . Uniques/NPCs Destroyed . | . . . . Combat | -11 -10 -10 -10 -------- Run | Yrd Mat Min Sub Hostile Shots Fired 144 | . 75 . 69 Missed 37 | . 22 . 15 Hits 107 | . 53 . 54 Projectile 107 | . 53 . 54 Critical Strikes 1 | . . . 1 Damage Taken 2122 | 35 646 . 1441 Core 255 | . 105 . 150 Absorbed by Shields . | . . . . Core Remaining (%) 100 | 100 . . . Volleys Fired 97 | 3 67 . 27 Largest 2 | 2 2 . 2 Hottest 85 | 60 85 . 60 Shots Fired 182 | 6 129 . 47 Gun 170 | 6 124 . 40 Cannon . | . . . . Launcher 12 | . 5 . 7 Special . | . . . . Kinetic 123 | 3 80 . 40 Thermal 43 | . 43 . . Explosive 12 | . 5 . 7 Electromagnetic 4 | 3 1 . . Robot Hit Streak 25 | 4 17 . 25 Robot Miss Streak 6 | . 6 . 1 Penetration Max . | . . . . Secondary Targets 1 | . 1 . . Max Gunslinging Chain 1 | . 1 . . Shots Hit Robots 110 | 4 66 . 40 Core Hits 63 | 3 39 1 20 Critical Kills . | . . . . Critical Parts Destroyed . | . . . . Critical Strikes 1 | . 1 . . Burn 1 | . 1 . . Melee Attacks . | . . . . Impact . | . . . . Slashing . | . . . . Piercing . | . . . . Sneak Attacks . | . . . . Combat Hostiles . | . . . . Follow-up Attacks . | . . . . Damage Inflicted 2324 | 76 1256 29 963 Guns 1673 | 55 986 . 632 Cannons . | . . . . Explosions 620 | 21 268 . 331 Melee . | . . . . Ramming 31 | . 2 29 . Kinetic 1243 | 14 597 . 632 Thermal 410 | 21 389 . . Explosive 599 | . 268 . 331 Electromagnetic 41 | 41 . . . Impact . | . . . . Slashing . | . . . . Piercing . | . . . . Highest Corruption . | . . . . Average Corruption . | . . . . Corruption Purged . | . . . . Corruption Blocked . | . . . . Overload Shots . | . . . . Overflow Damage . | . . . . Projectiles . | . . . . Explosions . | . . . . Melee . | . . . . Knockbacks . | . . . . Impact . | . . . . Kinetic . | . . . . Secondary . | . . . . Self-Inflicted Damage 103 | 35 30 . 38 Shots 6 | 1 2 . 3 Rammed 7 | . 1 6 . Targets Rammed 7 | . 1 6 . Kicked . | . . . . Crushed . | . . . . Highest Temperature 120 | 12 120 . . Average Temperature 33 | 12 33 . . Received Heat Transfer 564 | . 288 . 276 Siege Activations . | . . . . Martial Activations . | . . . . Shielding Activations . | . . . . Robots Disrupted . | . . . . Combat Hostiles . | . . . . Robots Corrupted . | . . . . Combat Hostiles . | . . . . Parts Fried . | . . . . Impact Corruptions . | . . . . Robots Melted . | . . . . Combat Hostiles . | . . . . Parts Melted 2 | . 2 . . Heat Transferred 1086 | 50 1036 . . Parts Sabotaged . | . . . . Parts Stolen . | . . . . Parts Stripped . | . . . . Power Chain Reactions 1 | 1 . . . Alert | -11 -10 -10 -10 ------- Run | Yrd Mat Min Sub Maximum Alert Level 1 | . 1 . . Low Security (%) 99 | 100 99 100 . Level 1 . | . . . . Level 2 . | . . . . Level 3 . | . . . . Level 4 . | . . . . Level 5 . | . . . . High Security . | . . . . Max Security . | . . . . Peak Influence 204 | 10 204 69 . Initial 69 | . . 69 . Average 62 | 1 106 4 . Influence Increases 627 | 15 612 . . Destroy 0b10 Robot/C 360 | . 360 . . Destroy 0b10 Robot/NC 60 | 15 45 . . Destroy Leader 78 | . 78 . . Successful Hack 29 | . 29 . . Disable Machine 15 | . 15 . . Destroy Structure 40 | . 40 . . Lose Combat Pursuer 45 | . 45 . . Influence Decreases 627 | 15 434 178 . Entered New Map 109 | . . 109 . Time Decay 508 | 15 424 69 . Lost Part 10 | . 10 . . Squads Dispatched 3 | . 3 . . Investigation 2 | . 2 . . Extermination . | . . . . Reinforcement 1 | . 1 . . Assault . | . . . . Garrison . | . . . . Intercept . | . . . . Searches Triggered . | . . . . Construction Impeded . | . . . . Haulers Reinforced . | . . . . Active Scanning Responses . | . . . . Cargo Convoy Interrupts . | . . . . Stealth | -11 -10 -10 -10 --------- Run | Yrd Mat Min Sub Distress Signals 3 | . 3 . . Communications Jammed . | . . . . Distress Signals . | . . . . Times Spotted 40 | . 28 . 12 Peak Tracking Total 6 | . 6 . 3 Tactical Retreats 2 | . 2 . . Traps | -11 -10 -10 -10 ------- Run | Yrd Mat Min Sub Traps Triggered 7 | . 3 . 4 Indirectly . | . . . . Trap Hack Attempts . | . . . . Triggered . | . . . . Disarmed . | . . . . Reprogrammed . | . . . . Reused . | . . . . Traps Extracted . | . . . . Installed . | . . . . Triggered . | . . . . Machines | -11 -10 -10 -10 ---------- Run | Yrd Mat Min Sub Machines Disabled 1 | . 1 . . Max in Single Turn 1 | . 1 . . Machines Repaired . | . . . . Machines Dismantled . | . . . . Machines Sabotaged . | . . . . Overloaded Fab Kills . | . . . . Hacking | -11 -10 -10 -10 --------- Run | Yrd Mat Min Sub Machines Accessed 8 | . 7 1 . Terminals 7 | . 7 . . Fabricators . | . . . . Repair Stations . | . . . . Recycling Units . | . . . . Scanalyzers . | . . . . Garrison Access . | . . . . Total Hacks 17 | . 16 1 . Successful 10 | . 9 1 . Failed 7 | . 7 . . Catastrophic 2 | . 2 . . Database Lockouts . | . . . . Manual 13 | . 13 . . Terminals 16 | . 16 . . Fabricators . | . . . . Repair Stations . | . . . . Recycling Units . | . . . . Scanalyzers . | . . . . Garrison Access . | . . . . Terminal Hacks 7 | . 6 1 . Open Door 1 | . . 1 . Terminal Index 1 | . 1 . . Dispatch Records 1 | . 1 . . Maintenance Status 1 | . 1 . . Security Status 1 | . 1 . . Zone Layout 2 | . 2 . . Fabricator Hacks . | . . . . Repair Station Hacks . | . . . . Recycling Unit Hacks . | . . . . Scanalyzer . | . . . . Garrison Access Hacks . | . . . . Unauthorized Hacks 3 | . 3 . . Terminals 3 | . 3 . . Botnet 3 | . 3 . . Fabricators . | . . . . Repair Stations . | . . . . Recycling Units . | . . . . Scanalyzers . | . . . . Garrison Access . | . . . . Data Cores Recovered 1 | . 1 . . Used . | . . . . Hacking Detections 6 | . 6 . . Full Trace Events 2 | . 2 . . Feedback Events . | . . . . Feedback Blocked . | . . . . Robot Schematics Acquired . | . . . . Robots Built . | . . . . Authchips . | . . . . Time . | . . . . Total Robot Build Rating . | . . . . Part Schematics Acquired . | . . . . Parts Built . | . . . . Authchips . | . . . . Time . | . . . . Total Part Build Rating . | . . . . Part Studies Acquired . | . . . . Parts Repaired . | . . . . Time . | . . . . Parts Recycled . | . . . . Recycled Matter . | . . . . Retrieved Matter . | . . . . Retrieved Components . | . . . . Parts Scanalyzed . | . . . . Part Schematics Acquired . | . . . . Parts Damaged . | . . . . Bothacking | -11 -10 -10 -10 ------------ Run | Yrd Mat Min Sub Used RIF Installer . | . . . . Robots Hacked . | . . . . Non-combat . | . . . . Combat . | . . . . Robot Hacks Applied . | . . . . Relay Couplers Released . | . . . . Fabnet Peak Effective % . | . . . . Robots Rewired . | . . . . Allies Hacked . | . . . . Hacks Repelled . | . . . . Allies | -11 -10 -10 -10 -------- Run | Yrd Mat Min Sub Total Allies 3 | . . 3 . Largest Group 3 | . . 3 3 Highest-Rated Group 40 | . . 40 40 Highest-Rated Ally 16 | . . 16 16 Total Orders . | . . . . Ally Attacks 12 | . . . 12 Total Damage . | . . . . Kills . | . . . . Allies Corrupted . | . . . . Allies Melted . | . . . . Intel | -11 -10 -10 -10 ------- Run | Yrd Mat Min Sub Active Infowar (turns) 3205 | 62 1675 1147 321 Terrain 27 | 27 . . . Seismic 3178 | 35 1675 1147 321 Robot Analysis Total . | . . . . Derelict Logs Recovered 3 | . . 1 2 Drone Launches . | . . . . Drone Recoveries . | . . . . Exploration | -11 -10 -10 -10 ------------- Run | Yrd Mat Min Sub Turns Passed 4036 | 131 1675 1147 1083 Spaces Moved 2204 | 61 851 711 581 Core 6 | 6 . . . Treads 2198 | 55 851 711 581 Legs . | . . . . Wheels . | . . . . Hover . | . . . . Flight . | . . . . Fastest Speed 50 | 50 160 160 160 Average Speed 160 | 149 161 160 160 Slowest Speed 240 | 160 240 160 160 Overloaded Moves . | . . . . Propulsion Burnouts . | . . . . Robots Hopped . | . . . . Potential Cave-ins . | . . . . Cave-ins Triggered . | . . . . Exploration Rate (%) 58 | 4 88 99 44 Regions Visited 3 Branch Regions 2 Pre-discovered Areas 1 | . . . 1 Known Exits Taken . | . . . . Unknown Exits Taken 3 | 1 1 1 . Scrap Searched 1 | . . 1 . Spaces Dug 26 | . 6 . 20 Terrain Destroyed 82 | 2 35 . 45 Melee . | . . . . Projectile . | . . . . AOE 82 | 2 35 . 45 Terrain Rammed . | . . . . Walls Destroyed . | . . . . Machines Disabled . | . . . . Actions | -11 -10 -10 -10 --------- Run | Yrd Mat Min Sub Total 2530 | 95 1032 717 686 Wait 101 | 13 60 . 28 Move 2201 | 60 850 710 581 Hop . | . . . . Pick Up 45 | 11 20 1 13 Fast Attach 4 | . 2 . 2 Attach 15 | 7 2 . 6 Detach . | . . . . Swap 19 | 1 11 . 7 Drop 33 | . 19 . 14 Fire 97 | 3 67 . 27 Melee . | . . . . Ram . | . . . . Kick . | . . . . Crush 7 | . 1 6 . Escape Stasis . | . . . . Rewire . | . . . . Trap . | . . . . Miscellaneous 8 | . . . 8 Route ------- -11/Scrapyard -10/Materials (discovered 4 exits: [*Mat x3] / *Min) -10/Mines (discovered 3 exits: [*Mat x2] / [*Sub]) -10/Subcaves (discovered 2 exits: [*Mat] / Rec) History --------- Turn | Location | Event 2 | -11/Scrapyard | Met Revision 17 4 | -11/Scrapyard | Discovered new exit (range 15) 132 | -11/Scrapyard | Entered Materials 248 | -10/Materials | Discovered new exit (range 9) 305 | -10/Materials | Build established: Mutant 586 | -10/Materials | Discovered new exit (range 3) 940 | -10/Materials | Discovered new exit (range 8) 1345 | -10/Materials | Discovered new exit (range 15) 1807 | -10/Materials | Entered Mines 2031 | -10/Mines | Assisted by bots powering up and referring to "LRC-V3" 2035 | -10/Mines | Learned Materials stockpile data 2227 | -10/Mines | Discovered new exit (range 12) 2239 | -10/Mines | Discovered new exit (range 6) 2447 | -10/Mines | Discovered new exit (range 13) 2580 | -10/Mines | Found the Drone Emporium 2587 | -10/Mines | Found Prototype Device 2954 | -10/Mines | Entered Subcaves 2954 | -10/Subcaves | Accompanied by 3 allies 3176 | -10/Subcaves | Learned location of Zion (-7) 3241 | -10/Subcaves | Ambushed by Subdweller buried in earth 3256 | -10/Subcaves | Core integrity fell below 50% 3323 | -10/Subcaves | Identified Bomb Drone Bay 3527 | -10/Subcaves | Discovered new exit (range 6) 3555 | -10/Subcaves | Build established: Subdweller-Mutant 3559 | -10/Subcaves | Identified exit to Recycling 4004 | -10/Subcaves | A Subdweller sparked back to life 4004 | -10/Subcaves | A Subdweller sparked back to life 4004 | -10/Subcaves | A Subdweller sparked back to life 4019 | -10/Subcaves | Core integrity fell below 20% 4037 | -10/Subcaves | Destroyed by TI-WC1(R) with Subdweller Beam Cannon Last Messages --------------- 03728_ 8B-2YX(u) tweaks Twisted Machinery. 03728_ Acquired 24 matter. 03731_ Scrap Shield Fragment affixed to Scrap Shield (+47). 03769_ Scrap Shield Fragment affixed to Scrap Shield (+1). 03894_ Scrap Shield destroyed. 03903_ HA-A8P(R) destroyed. 03906_ Q1-6CZ(R) destroyed. 03912_ Acquired 29 matter. 03913_ Sub. Power Source shoots sparks and powers down. 03914_ Acquired 25 matter. 03917_ Acquired Scrap Shield Fragment. 03925_ Acquired Sub. Power Source. 03927_ Dropped Broken Sub. Power Source. 04004_ YN-P2P(R) creaks and sparks as it begins to move. 04004_ UA-TS5(R) creaks and sparks as it begins to move. 04004_ TI-WC1(R) creaks and sparks as it begins to move. 04018_ Imp. Treads destroyed. 04025_ Sub. Machine Gun destroyed. 04032_ Sub. Power Source destroyed. 04037_ Imp. Treads destroyed. Map ----- +----------------------------------------------------+ | ??## ### #???????????????????????????? | | ???# ## ##??????????????????????????? | | ???# #??????????????????????????? | | ???## ## #??????????????????????????? | | ????#### # ### #?????????????????????????? | | ?#?????## ## #? #?????????????????????????? | | ?# ### ## #?# ##?????????????????????????? | | ?# # #### ##??????????????????????????? | | ?### # ###???????????????????????????? | | ???# ## #?????????????????????????????? | | ??# ?# ##?????????????????????????????? | | ### ## ?### ####??????????????????????????????? | | # ?##???# ###???????????????????????????????? | | ????### ##??????????????????????????????? | | ?### #??????????????????????????????? | | # # ####??????????????????""???????? | | #### ##?????????#####??""""??????? | | ???## #????????## ###"""""##???? | | ????# #"< #???????## """" #???? | | ????# ##??????# " " #???? | | ????# " " ######## " " #????? | | ????## "# ## ## = """#???????? | | ?????# " "?## ##########????? | | ??? # ?## ##??### ###??? | | ?? ?#####?# RR ##??## #??? | | ?? ????????# R @ ###?# #??? | | ?? ?????????############# ##?# ##?? | | ?? ??????????????????????## #### ##? | | ?? ????????????????????????# ## ## | | ???????????????????????????### ## # | | ?????????????????????????????# #### # | | ???????????????????????????? #??# ## | | ???????????????????????????#" #??# #? | | ?????????????????????????? ??# ### | | ?????????????????????????#$#" ## #?# | | ?????????????????????????### | ### | | ???????????????????????????# ## | | ???????????????????????????# #### | | ???????????????????????????########## | | ?????????????????????????????????# | | ????????????????????????????????# | | ????????????????????????????????# #### | | ????????????????????????????????# ## ?# | | ??????????????????????????????? ? ## | | ??????????????????????????????? ###### | | ??????????????????????????????? # # # ????? | | ???????????????????????????????? ????#### ?????? | | ?????????????????????????????????????????# ?????? | | ????????????????????????????????????????? ?????? | | ????????????????????????????????????????# ?????? | +----------------------------------------------------+ Best States ------------- Heat Dissipation 25 Energy Generation 15 Energy Capacity 250 Matter Stores 300 Matter Capacity 300 Sight Range 16 Terrain Scan Range 16 Terrain Scan Density 10 Armor Coverage 800 Evasion (%) 40 Recoil Reduction 2 Item Schematics ----------------- None Robot Schematics ------------------ None Fabricated ------------ Nothing Repaired ---------- Nothing Studied --------- None Alien Tech Used ----------------- None Achievements -------------- You Again Challenges ------------ None Game ------ Seed SpikedHypercooledLegs Manual? 0 Play Time 00:40:23 Cumulative 25.1 hours Start 2026.04.11 @ 17:03:19 End 2026.04.11 @ 17:57:24 Sessions 1 Manual Loads 0 Difficulty Rogue Special Mode None Game No. 15 Rogue 6 Adventurer 0 Explorer 9 Win Type - Total 1 Types 1/0/0/0/0/0/0/0/0/0 Lore% 14 Gallery% 23 Achievement% 31 Wizard Run 0 Options --------- Layout 0 ASCII 0 Keyboard 0 Movement Mouse Keybinds 0 Fullscreen 1 Font 18/SmallcapsGlow Map View 76x50 Zoom Use 0% Tactical HUD 1 Map Filters NONE Filters NONE Steam 1 RUN: 4020434e-0a34-4a1b-bf19-3aae4c2c095a